[Event "Live Chess"]
[Site "Chess.com"]
[Date "2024.06.01"]
[Round "-"]
[White "sebmoran1"]
[Black "MagnersCarlsberg2870"]
[Result "1-0"]
[WhiteElo "1489"]
[BlackElo "1877"]
[TimeControl "300"]
[EndTime "11:12:24 PDT"]
[Termination "sebmoran1 won by resignation"]

1. c4 {[%clk 0:04:55.3]} 1... Nf6 {[%clk 0:04:55.7]} 2. Nc3 {[%clk 0:04:54.1]}
2... e5 {[%clk 0:04:53.6]} 3. g3 {[%clk 0:04:53]} 3... Bc5 {[%clk 0:04:52.6]} 4.
Bg2 {[%clk 0:04:52.1]} 4... Ng4 {[%clk 0:04:49.5]} 5. e3 {[%clk 0:04:49.6]} 5...
Nc6 {[%clk 0:04:45.8]} 6. Qxg4 {[%clk 0:04:47.2]} 6... O-O {[%clk 0:04:44.3]} 7.
d4 {[%clk 0:04:41.6]} 7... d5 {[%clk 0:04:43]} 8. Qe2 {[%clk 0:04:39]} 8... exd4
{[%clk 0:04:41.2]} 9. exd4 {[%clk 0:04:36.3]} 9... Re8 {[%clk 0:04:40.1]} 10.
dxc5 {[%clk 0:04:32.1]} 10... Rxe2+ {[%clk 0:04:38.6]} 11. Ngxe2 {[%clk
0:04:30.8]} 11... d4 {[%clk 0:04:27.8]} 12. Nd5 {[%clk 0:04:27.3]} 12... d3
{[%clk 0:04:23.5]} 13. Nec3 {[%clk 0:04:23.6]} 13... Qe8+ {[%clk 0:04:21.2]} 14.
Be3 {[%clk 0:04:22.3]} 14... Nd4 {[%clk 0:04:14.1]} 15. O-O {[%clk 0:04:13.5]}
15... Ne2+ {[%clk 0:03:54.8]} 16. Nxe2 {[%clk 0:04:10.4]} 16... dxe2 {[%clk
0:03:53.3]} 17. Rfe1 {[%clk 0:04:09.3]} 17... Qd8 {[%clk 0:03:46]} 18. Rxe2
{[%clk 0:04:04.8]} 18... c6 {[%clk 0:03:44.2]} 19. Nf4 {[%clk 0:03:44.7]} 19...
Bg4 {[%clk 0:03:41.7]} 20. Rd2 {[%clk 0:03:41.3]} 20... Qa5 {[%clk 0:03:34.3]}
21. h3 {[%clk 0:03:38.6]} 21... Bh5 {[%clk 0:03:31.1]} 22. g4 {[%clk 0:03:37.4]}
22... Bg6 {[%clk 0:03:30.2]} 23. Rad1 {[%clk 0:03:35.3]} 23... h6 {[%clk
0:03:15.5]} 24. Nxg6 {[%clk 0:03:32.7]} 24... fxg6 {[%clk 0:03:14.4]} 25. a3
{[%clk 0:03:31.9]} 25... Rf8 {[%clk 0:03:09.6]} 26. Rd7 {[%clk 0:03:28.5]} 26...
b6 {[%clk 0:02:56.6]} 27. cxb6 {[%clk 0:03:22.5]} 27... axb6 {[%clk 0:02:55.7]}
28. Bd4 {[%clk 0:03:16.6]} 28... Rf7 {[%clk 0:02:54.6]} 29. Rd8+ {[%clk
0:03:12.8]} 29... Kh7 {[%clk 0:02:53.3]} 30. Bxc6 {[%clk 0:03:04.2]} 30... h5
{[%clk 0:02:43.6]} 31. Bd5 {[%clk 0:02:58.2]} 31... Re7 {[%clk 0:02:37.9]} 32.
Bg8+ {[%clk 0:02:49.7]} 32... Kh6 {[%clk 0:02:31.6]} 33. Be3+ {[%clk 0:02:48.6]}
33... g5 {[%clk 0:02:28.3]} 34. R8d6+ {[%clk 0:02:46.3]} 34... g6 {[%clk
0:02:26.8]} 35. gxh5 {[%clk 0:02:39.5]} 35... Kxh5 {[%clk 0:02:13.8]} 36. Be6
{[%clk 0:02:28.3]} 36... Qe5 {[%clk 0:02:08.1]} 37. Bg4+ {[%clk 0:02:25.5]}
37... Kh6 {[%clk 0:02:06.8]} 38. R6d5 {[%clk 0:02:20.2]} 38... Qxb2 {[%clk
0:02:00.8]} 39. Rxg5 {[%clk 0:02:12.4]} 39... Rxe3 {[%clk 0:01:58.2]} 40. fxe3
{[%clk 0:02:01.5]} 40... Kxg5 {[%clk 0:01:57]} 41. e4 {[%clk 0:01:57.8]} 41...
Qxa3 {[%clk 0:01:51]} 42. e5 {[%clk 0:01:56.7]} 42... Qe3+ {[%clk 0:01:49.3]}
43. Kg2 {[%clk 0:01:55.2]} 43... Qe4+ {[%clk 0:01:44.4]} 44. Bf3 {[%clk
0:01:50.7]} 44... Qxc4 {[%clk 0:01:40.6]} 45. Rg1 {[%clk 0:01:44.5]} 45... Kf5
{[%clk 0:01:34.1]} 46. Re1 {[%clk 0:01:38]} 46... Qe6 {[%clk 0:01:23.4]} 47.
Bg4+ {[%clk 0:01:36.2]} 47... Kg5 {[%clk 0:01:20.1]} 48. Bxe6 {[%clk 0:01:36.1]}
1-0

[Event "Live Chess"]
[Site "Chess.com"]
[Date "2024.06.01"]
[Round "-"]
[White "Stanbad1"]
[Black "hapehansen"]
[Result "1-0"]
[WhiteElo "2681"]
[BlackElo "2241"]
[TimeControl "300"]
[EndTime "11:12:35 PDT"]
[Termination "Stanbad1 won by resignation"]

1. d4 {[%clk 0:04:56.7]} 1... Nf6 {[%clk 0:04:54.3]} 2. Nc3 {[%clk 0:04:56.2]}
2... d5 {[%clk 0:04:52.5]} 3. Bf4 {[%clk 0:04:54.4]} 3... e6 {[%clk 0:04:49.9]}
4. Nb5 {[%clk 0:04:53.1]} 4... Bb4+ {[%clk 0:04:37.2]} 5. c3 {[%clk 0:04:48.2]}
5... Ba5 {[%clk 0:04:35.6]} 6. a4 {[%clk 0:04:47.8]} 6... a6 {[%clk 0:04:28.7]}
7. b4 {[%clk 0:04:47.2]} 7... axb5 {[%clk 0:04:19.4]} 8. axb5 {[%clk 0:04:45.4]}
8... c6 {[%clk 0:04:00.2]} 9. bxa5 {[%clk 0:04:41.8]} 9... cxb5 {[%clk
0:03:52.8]} 10. e3 {[%clk 0:04:40.2]} 10... Nc6 {[%clk 0:03:49.5]} 11. Bxb5
{[%clk 0:04:38]} 11... O-O {[%clk 0:03:44.8]} 12. a6 {[%clk 0:04:36]} 12... Qb6
{[%clk 0:03:35.1]} 13. axb7 {[%clk 0:04:29]} 13... Bxb7 {[%clk 0:03:31.8]} 14.
Rb1 {[%clk 0:04:25.4]} 14... Ba6 {[%clk 0:03:06.3]} 15. Bxa6 {[%clk 0:04:22.8]}
15... Qxa6 {[%clk 0:03:04.1]} 16. Ne2 {[%clk 0:04:21.9]} 16... Rfc8 {[%clk
0:02:50.6]} 17. O-O {[%clk 0:04:18.7]} 17... Na5 {[%clk 0:02:41.7]} 18. f3
{[%clk 0:04:08.5]} 18... Nc4 {[%clk 0:02:35.8]} 19. Qd3 {[%clk 0:03:56.8]} 19...
Nb6 {[%clk 0:02:16.2]} 20. Qxa6 {[%clk 0:03:50.1]} 20... Rxa6 {[%clk 0:02:14.2]}
21. Ra1 {[%clk 0:03:49.1]} 21... Rxa1 {[%clk 0:02:09.2]} 22. Rxa1 {[%clk
0:03:49]} 22... Nfd7 {[%clk 0:02:02.5]} 23. e4 {[%clk 0:03:44.7]} 23... f6
{[%clk 0:01:58.1]} 24. Bd6 {[%clk 0:03:40.3]} 24... Nc4 {[%clk 0:01:52.8]} 25.
Bb4 {[%clk 0:03:37.5]} 25... dxe4 {[%clk 0:01:45.3]} 26. fxe4 {[%clk 0:03:33.1]}
26... Nd2 {[%clk 0:01:43.1]} 27. Ng3 {[%clk 0:03:29.5]} 27... Nc4 {[%clk
0:01:21.8]} 28. Ra7 {[%clk 0:03:26.7]} 28... Nf8 {[%clk 0:01:17]} 29. Nh5 {[%clk
0:03:23.3]} 1-0

[Event "Live Chess"]
[Site "Chess.com"]
[Date "2024.06.01"]
[Round "-"]
[White "StoreySniper"]
[Black "resipsa6"]
[Result "1-0"]
[WhiteElo "2562"]
[BlackElo "2027"]
[TimeControl "300"]
[EndTime "11:12:39 PDT"]
[Termination "StoreySniper won by checkmate"]

1. c4 {[%clk 0:04:58.1]} 1... Nf6 {[%clk 0:04:57.3]} 2. g3 {[%clk 0:04:56.7]}
2... g6 {[%clk 0:04:56.6]} 3. Bg2 {[%clk 0:04:55]} 3... Bg7 {[%clk 0:04:55.3]}
4. Nc3 {[%clk 0:04:54.2]} 4... O-O {[%clk 0:04:54.6]} 5. d4 {[%clk 0:04:53.1]}
5... c6 {[%clk 0:04:54]} 6. e4 {[%clk 0:04:51.7]} 6... d6 {[%clk 0:04:52.2]} 7.
Nge2 {[%clk 0:04:49.4]} 7... Na6 {[%clk 0:04:48]} 8. h3 {[%clk 0:04:47]} 8...
Nc7 {[%clk 0:04:47.1]} 9. g4 {[%clk 0:04:45.4]} 9... h6 {[%clk 0:04:45.4]} 10.
Be3 {[%clk 0:04:43.4]} 10... Kh7 {[%clk 0:04:44.3]} 11. f4 {[%clk 0:04:39.7]}
11... Re8 {[%clk 0:04:43.4]} 12. e5 {[%clk 0:04:26.9]} 12... dxe5 {[%clk
0:04:41.2]} 13. fxe5 {[%clk 0:04:25.8]} 13... Nd7 {[%clk 0:04:40]} 14. O-O
{[%clk 0:04:23]} 14... e6 {[%clk 0:04:34.5]} 15. Rxf7 {[%clk 0:04:19.8]} 15...
Rf8 {[%clk 0:04:32.2]} 16. Rxf8 {[%clk 0:04:14.9]} 16... Qxf8 {[%clk 0:04:32.1]}
17. Qd3 {[%clk 0:04:10.8]} 17... b5 {[%clk 0:04:27.2]} 18. cxb5 {[%clk
0:04:05.4]} 18... Rb8 {[%clk 0:04:24.9]} 19. Bxc6 {[%clk 0:04:01.9]} 19... Nb6
{[%clk 0:04:22.1]} 20. Rf1 {[%clk 0:03:59.4]} 20... Qb4 {[%clk 0:04:19.1]} 21.
Be4 {[%clk 0:03:48]} 21... Bd7 {[%clk 0:04:14.9]} 22. Bxg6+ {[%clk 0:03:44.3]}
22... Kh8 {[%clk 0:04:14.1]} 23. Be4 {[%clk 0:03:37.4]} 23... Nxb5 {[%clk
0:04:10.2]} 24. Nf4 {[%clk 0:03:32.9]} 24... Nxc3 {[%clk 0:03:49.4]} 25. Bh7
{[%clk 0:03:26.2]} 25... Ne2+ {[%clk 0:03:26.1]} 26. Nxe2 {[%clk 0:03:25.2]}
26... Bb5 {[%clk 0:03:21.5]} 27. Qg6 {[%clk 0:03:09.3]} 27... Bxe2 {[%clk
0:03:06.1]} 28. Rf7 {[%clk 0:02:59.7]} 28... Qe1+ {[%clk 0:02:43.6]} 29. Kh2
{[%clk 0:02:56.7]} 29... Bf8 {[%clk 0:02:32.1]} 30. Qg8# {[%clk 0:02:53.7]} 1-0

[Event "Live Chess"]
[Site "Chess.com"]
[Date "2024.06.01"]
[Round "-"]
[White "GerardATHart"]
[Black "Nazar-Makarchuk"]
[Result "0-1"]
[WhiteElo "1414"]
[BlackElo "1538"]
[TimeControl "300"]
[EndTime "11:12:48 PDT"]
[Termination "Nazar-Makarchuk won by resignation"]

1. e4 {[%clk 0:04:53.9]} 1... d5 {[%clk 0:04:59.5]} 2. exd5 {[%clk 0:04:51.4]}
2... Qxd5 {[%clk 0:04:57.9]} 3. d4 {[%clk 0:04:47.8]} 3... Nc6 {[%clk
0:04:56.5]} 4. Be3 {[%clk 0:04:44]} 4... e5 {[%clk 0:04:54.9]} 5. c4 {[%clk
0:04:40.9]} 5... Qa5+ {[%clk 0:04:51.6]} 6. Nc3 {[%clk 0:04:37.2]} 6... exd4
{[%clk 0:04:50.6]} 7. Bxd4 {[%clk 0:04:34.6]} 7... Nxd4 {[%clk 0:04:48.4]} 8.
Qxd4 {[%clk 0:04:32.9]} 8... Qb6 {[%clk 0:04:44.9]} 9. O-O-O {[%clk 0:04:21.4]}
9... Qxd4 {[%clk 0:04:43.6]} 10. Rxd4 {[%clk 0:04:16.9]} 10... Nf6 {[%clk
0:04:43]} 11. Nf3 {[%clk 0:04:14.3]} 11... Bc5 {[%clk 0:04:41.4]} 12. Rd2 {[%clk
0:04:10.5]} 12... O-O {[%clk 0:04:37.9]} 13. Bd3 {[%clk 0:04:07.5]} 13... Bg4
{[%clk 0:04:36.2]} 14. h3 {[%clk 0:03:54.3]} 14... Bxf3 {[%clk 0:04:30.7]} 15.
gxf3 {[%clk 0:03:50.7]} 15... Bb4 {[%clk 0:04:30.1]} 16. Rdd1 {[%clk 0:03:39.3]}
16... Rfd8 {[%clk 0:04:27.6]} 17. Kc2 {[%clk 0:03:37.5]} 17... Kf8 {[%clk
0:04:25.1]} 18. Rdg1 {[%clk 0:03:35]} 18... Bxc3 {[%clk 0:04:20.8]} 19. Kxc3
{[%clk 0:03:25.9]} 19... g6 {[%clk 0:04:20.1]} 20. Re1 {[%clk 0:03:16.4]} 20...
Nh5 {[%clk 0:04:18.5]} 21. Re4 {[%clk 0:03:06.3]} 21... Re8 {[%clk 0:04:14.6]}
22. Rhe1 {[%clk 0:03:05.1]} 22... Nf6 {[%clk 0:04:12.8]} 23. Rxe8+ {[%clk
0:02:56.6]} 23... Rxe8 {[%clk 0:04:12]} 24. Rxe8+ {[%clk 0:02:54.9]} 24... Kxe8
{[%clk 0:04:11.4]} 25. Kd4 {[%clk 0:02:53.1]} 25... Ke7 {[%clk 0:04:10.4]} 26.
Ke5 {[%clk 0:02:40.7]} 26... Nh5 {[%clk 0:04:06.2]} 27. b4 {[%clk 0:02:29.2]}
27... f6+ {[%clk 0:04:05.5]} 28. Kd4 {[%clk 0:02:23.9]} 28... Nf4 {[%clk
0:04:03.7]} 29. Be4 {[%clk 0:02:19.7]} 29... Nxh3 {[%clk 0:04:02.2]} 30. Bxb7
{[%clk 0:02:17.8]} 30... Nxf2 {[%clk 0:04:01.3]} 31. Kc5 {[%clk 0:02:15.1]}
31... Kd8 {[%clk 0:03:59.3]} 32. Kc6 {[%clk 0:02:12.8]} 32... Nd3 {[%clk
0:03:57.8]} 33. b5 {[%clk 0:02:10.4]} 33... Ne5+ {[%clk 0:03:53.3]} 34. Kd5
{[%clk 0:02:07.3]} 34... Nxf3 {[%clk 0:03:49.8]} 35. Ke6 {[%clk 0:02:01.9]}
35... Nd2 {[%clk 0:03:41.8]} 36. c5 {[%clk 0:01:58.3]} 36... f5 {[%clk
0:03:37.6]} 37. a4 {[%clk 0:01:54.2]} 37... f4 {[%clk 0:03:33.9]} 38. a5 {[%clk
0:01:50.3]} 38... f3 {[%clk 0:03:33.3]} 39. Bxf3 {[%clk 0:01:47.4]} 39... Nxf3
{[%clk 0:03:31.6]} 40. b6 {[%clk 0:01:45.9]} 40... cxb6 {[%clk 0:03:29.2]} 41.
cxb6 {[%clk 0:01:43.7]} 41... a6 {[%clk 0:03:27.8]} 0-1

[Event "Live Chess"]
[Site "Chess.com"]
[Date "2024.06.01"]
[Round "-"]
[White "Kyrylo7770"]
[Black "SirGerhard"]
[Result "0-1"]
[WhiteElo "1684"]
[BlackElo "2772"]
[TimeControl "300"]
[EndTime "11:12:59 PDT"]
[Termination "SirGerhard won by checkmate"]

1. d4 {[%clk 0:04:58.9]} 1... Nf6 {[%clk 0:04:59.1]} 2. Nf3 {[%clk 0:04:58.4]}
2... g6 {[%clk 0:04:58.3]} 3. Bg5 {[%clk 0:04:57.8]} 3... Bg7 {[%clk 0:04:57.7]}
4. e3 {[%clk 0:04:57.5]} 4... O-O {[%clk 0:04:57.1]} 5. h4 {[%clk 0:04:57.2]}
5... h6 {[%clk 0:04:56.1]} 6. Bxf6 {[%clk 0:04:56.7]} 6... Bxf6 {[%clk
0:04:55.5]} 7. h5 {[%clk 0:04:56.3]} 7... g5 {[%clk 0:04:54.9]} 8. Bd3 {[%clk
0:04:55.4]} 8... c5 {[%clk 0:04:53.9]} 9. c3 {[%clk 0:04:54.5]} 9... Nc6 {[%clk
0:04:52.2]} 10. d5 {[%clk 0:04:51.5]} 10... Ne5 {[%clk 0:04:50.1]} 11. Bc2
{[%clk 0:04:50.4]} 11... Qb6 {[%clk 0:04:39.6]} 12. Nxe5 {[%clk 0:04:49.1]}
12... Bxe5 {[%clk 0:04:38.6]} 13. Qd3 {[%clk 0:04:48.7]} 13... f5 {[%clk
0:04:37.9]} 14. b3 {[%clk 0:04:45.8]} 14... d6 {[%clk 0:04:34.8]} 15. e4 {[%clk
0:04:43.4]} 15... c4 {[%clk 0:04:24]} 16. Qd1 {[%clk 0:04:34.5]} 16... fxe4
{[%clk 0:04:22.1]} 17. Bxe4 {[%clk 0:04:32.9]} 17... Qxf2# {[%clk 0:04:20.7]}
0-1

[Event "Live Chess"]
[Site "Chess.com"]
[Date "2024.06.01"]
[Round "-"]
[White "febray_27"]
[Black "Queensandpawns"]
[Result "0-1"]
[WhiteElo "1983"]
[BlackElo "2444"]
[TimeControl "300"]
[EndTime "11:13:06 PDT"]
[Termination "Queensandpawns won by checkmate"]

1. Nf3 {[%clk 0:04:57.9]} 1... e5 {[%clk 0:04:59]} 2. Nxe5 {[%clk 0:04:56.8]}
2... Nc6 {[%clk 0:04:58.6]} 3. Nxc6 {[%clk 0:04:56]} 3... dxc6 {[%clk
0:04:58.5]} 4. g3 {[%clk 0:04:55.2]} 4... h5 {[%clk 0:04:57.3]} 5. h4 {[%clk
0:04:54.1]} 5... Bc5 {[%clk 0:04:55.3]} 6. Nc3 {[%clk 0:04:46.5]} 6... Nf6
{[%clk 0:04:52.4]} 7. e3 {[%clk 0:04:37.4]} 7... Ng4 {[%clk 0:04:50.6]} 8. d4
{[%clk 0:04:36.3]} 8... Bd6 {[%clk 0:04:49.3]} 9. Ne4 {[%clk 0:04:29.3]} 9...
Be7 {[%clk 0:04:44.9]} 10. f3 {[%clk 0:04:23.8]} 10... Nf6 {[%clk 0:04:41.8]}
11. Nxf6+ {[%clk 0:04:22.9]} 11... Bxf6 {[%clk 0:04:41.7]} 12. Bd2 {[%clk
0:04:20.6]} 12... Qd6 {[%clk 0:04:36.2]} 13. f4 {[%clk 0:04:16.9]} 13... Qd5
{[%clk 0:04:35.3]} 14. Rg1 {[%clk 0:04:12.3]} 14... Bg4 {[%clk 0:04:34.8]} 15.
Be2 {[%clk 0:04:11]} 15... O-O-O {[%clk 0:04:33.8]} 16. Bxg4+ {[%clk 0:04:09.5]}
16... hxg4 {[%clk 0:04:33.7]} 17. Qxg4+ {[%clk 0:04:09]} 17... Kb8 {[%clk
0:04:33.6]} 18. O-O-O {[%clk 0:04:08.3]} 18... Qxa2 {[%clk 0:04:31.8]} 19. Bc3
{[%clk 0:04:06.8]} 19... c5 {[%clk 0:04:28.7]} 20. f5 {[%clk 0:03:49.5]} 20...
cxd4 {[%clk 0:04:27]} 21. exd4 {[%clk 0:03:47.9]} 21... c5 {[%clk 0:04:26.3]}
22. b3 {[%clk 0:03:00]} 22... cxd4 {[%clk 0:04:22]} 23. Bb2 {[%clk 0:02:58.7]}
23... d3 {[%clk 0:04:19.5]} 24. Bxf6 {[%clk 0:02:48.2]} 24... Qxc2# {[%clk
0:04:19.4]} 0-1

[Event "Live Chess"]
[Site "Chess.com"]
[Date "2024.06.01"]
[Round "-"]
[White "dl_chess"]
[Black "chessfiction"]
[Result "0-1"]
[WhiteElo "1171"]
[BlackElo "2411"]
[TimeControl "300"]
[EndTime "11:13:08 PDT"]
[Termination "chessfiction won on time"]

1. e4 {[%clk 0:04:54.7]} 1... d6 {[%clk 0:04:56.5]} 2. Nc3 {[%clk 0:04:53]} 2...
Nf6 {[%clk 0:04:55]} 3. d4 {[%clk 0:04:50.8]} 3... c6 {[%clk 0:04:54.2]} 4. h3
{[%clk 0:04:41.9]} 4... g6 {[%clk 0:04:51.9]} 5. Nf3 {[%clk 0:04:40.7]} 5... Bg7
{[%clk 0:04:51.4]} 6. Be3 {[%clk 0:04:38.9]} 6... O-O {[%clk 0:04:50.9]} 7. Be2
{[%clk 0:04:35.5]} 7... b5 {[%clk 0:04:49.7]} 8. a3 {[%clk 0:04:32.8]} 8... a5
{[%clk 0:04:48.3]} 9. b4 {[%clk 0:04:28.7]} 9... Nbd7 {[%clk 0:04:46.7]} 10. O-O
{[%clk 0:04:20.5]} 10... Bb7 {[%clk 0:04:35.6]} 11. Qd2 {[%clk 0:04:09.3]} 11...
Qc7 {[%clk 0:03:23.6]} 12. Bh6 {[%clk 0:03:53.3]} 12... e5 {[%clk 0:03:16.8]}
13. Bxg7 {[%clk 0:03:51.2]} 13... Kxg7 {[%clk 0:03:16.7]} 14. d5 {[%clk
0:03:43.6]} 14... cxd5 {[%clk 0:03:05.6]} 15. exd5 {[%clk 0:03:41.1]} 15... Rfc8
{[%clk 0:02:42.5]} 16. Nxb5 {[%clk 0:03:07.8]} 16... Qxc2 {[%clk 0:02:38.3]} 17.
Nxd6 {[%clk 0:03:04.6]} 17... Qxd2 {[%clk 0:02:36.2]} 18. Nxd2 {[%clk
0:03:02.5]} 18... Rc2 {[%clk 0:02:35.6]} 19. Nxb7 {[%clk 0:02:55.1]} 19... Rxd2
{[%clk 0:02:31.2]} 20. Bb5 {[%clk 0:02:44.7]} 20... Rb8 {[%clk 0:02:14.5]} 21.
Nd6 {[%clk 0:02:41.8]} 21... axb4 {[%clk 0:02:07.7]} 22. axb4 {[%clk 0:02:38.6]}
22... Nb6 {[%clk 0:02:06.3]} 23. Ra7 {[%clk 0:02:26.5]} 23... Rf8 {[%clk
0:01:55.2]} 24. Rb7 {[%clk 0:02:19.9]} 24... Nbxd5 {[%clk 0:01:53.6]} 25. Bc6
{[%clk 0:01:57.3]} 25... Nxb4 {[%clk 0:01:48.8]} 26. Rxb4 {[%clk 0:01:54.6]}
26... Rxd6 {[%clk 0:01:47.2]} 27. Rc1 {[%clk 0:01:09.9]} 27... Rc8 {[%clk
0:01:43.5]} 28. Rbc4 {[%clk 0:01:09]} 28... Nh5 {[%clk 0:01:27.7]} 29. Bb7
{[%clk 0:01:05.9]} 29... Rxc4 {[%clk 0:01:24.2]} 30. Rxc4 {[%clk 0:01:04.1]}
30... Nf4 {[%clk 0:01:24.1]} 31. Re4 {[%clk 0:00:58.7]} 31... f6 {[%clk
0:01:20.8]} 32. Kh2 {[%clk 0:00:51.7]} 32... Rd2 {[%clk 0:01:18.6]} 33. Kg3
{[%clk 0:00:43]} 33... h5 {[%clk 0:01:16.5]} 34. Rc4 {[%clk 0:00:32.5]} 34...
h4+ {[%clk 0:00:56]} 35. Kxh4 {[%clk 0:00:28.4]} 35... Rxf2 {[%clk 0:00:55.2]}
36. g3 {[%clk 0:00:20.3]} 36... Ne6 {[%clk 0:00:47.2]} 37. Bd5 {[%clk
0:00:16.7]} 37... g5+ {[%clk 0:00:41.8]} 38. Kh5 {[%clk 0:00:12.2]} 38... Nd4
{[%clk 0:00:23.8]} 39. Rc7+ {[%clk 0:00:09.6]} 39... Kf8 {[%clk 0:00:22.9]} 40.
Rf7+ {[%clk 0:00:07.6]} 40... Ke8 {[%clk 0:00:22.2]} 41. Rxf6 {[%clk 0:00:06.7]}
41... Rxf6 {[%clk 0:00:20.4]} 42. Kxg5 {[%clk 0:00:02.2]} 42... Rd6 {[%clk
0:00:20.3]} 43. Be4 {[%clk 0:00:00.4]} 43... Rd5 {[%clk 0:00:20.2]} 0-1

[Event "Live Chess"]
[Site "Chess.com"]
[Date "2024.06.01"]
[Round "-"]
[White "Sokolik_UA"]
[Black "RomanKifliuk"]
[Result "0-1"]
[WhiteElo "804"]
[BlackElo "2343"]
[TimeControl "300"]
[EndTime "11:13:08 PDT"]
[Termination "RomanKifliuk won by resignation"]

1. e4 {[%clk 0:04:57.7]} 1... e5 {[%clk 0:04:58.8]} 2. d4 {[%clk 0:04:56.7]}
2... exd4 {[%clk 0:04:57.5]} 3. Qxd4 {[%clk 0:04:56.1]} 3... Nf6 {[%clk
0:04:56.6]} 4. Qe3 {[%clk 0:04:55.8]} 4... Nc6 {[%clk 0:04:55.9]} 5. Nc3 {[%clk
0:04:54.9]} 5... Bb4 {[%clk 0:04:54.8]} 6. Bd2 {[%clk 0:04:54.6]} 6... O-O
{[%clk 0:04:52.6]} 7. O-O-O {[%clk 0:04:52.7]} 7... d6 {[%clk 0:04:50.7]} 8. f3
{[%clk 0:04:52]} 8... a5 {[%clk 0:04:48.7]} 9. Bc4 {[%clk 0:04:51.2]} 9... Be6
{[%clk 0:04:47.1]} 10. Bxe6 {[%clk 0:04:47.7]} 10... fxe6 {[%clk 0:04:47]} 11.
Na4 {[%clk 0:04:43.3]} 11... e5 {[%clk 0:04:45]} 12. Bxb4 {[%clk 0:04:41.4]}
12... axb4 {[%clk 0:04:43.9]} 13. b3 {[%clk 0:04:32]} 13... b5 {[%clk
0:04:42.5]} 14. Nb2 {[%clk 0:04:30]} 14... Rxa2 {[%clk 0:04:40.7]} 15. c3 {[%clk
0:04:24.2]} 15... bxc3 {[%clk 0:04:37.7]} 16. Qxc3 {[%clk 0:04:22.3]} 16... Nd4
{[%clk 0:04:36.5]} 17. Kd2 {[%clk 0:04:13.3]} 17... Nxe4+ {[%clk 0:04:24.6]} 18.
Kd3 {[%clk 0:04:06.4]} 18... Nxc3 {[%clk 0:04:22.4]} 19. Kxc3 {[%clk 0:04:05.7]}
19... b4+ {[%clk 0:04:15.3]} 20. Kd3 {[%clk 0:04:02.3]} 20... Rxb2 {[%clk
0:04:14.1]} 21. Ke3 {[%clk 0:04:00.7]} 21... Qg5+ {[%clk 0:04:12.3]} 22. Ke4
{[%clk 0:03:58.1]} 22... c6 {[%clk 0:04:01.7]} 23. Kd3 {[%clk 0:03:52.5]} 23...
Qf5+ {[%clk 0:03:56.4]} 24. Kc4 {[%clk 0:03:51]} 24... Qc2+ {[%clk 0:03:55.2]}
25. Kxb4 {[%clk 0:03:50]} 25... Qc5+ {[%clk 0:03:52.6]} 0-1

[Event "Live Chess"]
[Site "Chess.com"]
[Date "2024.06.01"]
[Round "-"]
[White "viktor_forever1994"]
[Black "Ferrarifan27"]
[Result "0-1"]
[WhiteElo "1390"]
[BlackElo "2060"]
[TimeControl "300"]
[EndTime "11:13:09 PDT"]
[Termination "Ferrarifan27 won on time"]

1. e4 {[%clk 0:04:57.2]} 1... e5 {[%clk 0:04:58.5]} 2. Nf3 {[%clk 0:04:56.4]}
2... Nc6 {[%clk 0:04:57.8]} 3. d4 {[%clk 0:04:55.4]} 3... exd4 {[%clk
0:04:56.7]} 4. Nxd4 {[%clk 0:04:55.2]} 4... Qh4 {[%clk 0:04:55.7]} 5. Nc3 {[%clk
0:04:52.1]} 5... Bb4 {[%clk 0:04:54.4]} 6. Be2 {[%clk 0:04:45]} 6... Qxe4 {[%clk
0:04:48.6]} 7. Nb5 {[%clk 0:04:18.4]} 7... Bxc3+ {[%clk 0:04:44.4]} 8. bxc3
{[%clk 0:04:08.1]} 8... Kd8 {[%clk 0:04:42.9]} 9. O-O {[%clk 0:03:47]} 9... Nf6
{[%clk 0:04:41.2]} 10. Re1 {[%clk 0:03:37.1]} 10... Re8 {[%clk 0:04:37.2]} 11.
Ba3 {[%clk 0:03:16]} 11... d6 {[%clk 0:04:32.8]} 12. Bf3 {[%clk 0:02:49.2]}
12... Qxe1+ {[%clk 0:04:30.7]} 13. Qxe1 {[%clk 0:02:47.8]} 13... Rxe1+ {[%clk
0:04:30.3]} 14. Rxe1 {[%clk 0:02:47.3]} 14... a6 {[%clk 0:04:27.6]} 15. Nd4
{[%clk 0:02:26.3]} 15... Bd7 {[%clk 0:04:26.1]} 16. Nxc6+ {[%clk 0:02:07.5]}
16... Bxc6 {[%clk 0:04:24.4]} 17. Bxc6 {[%clk 0:02:02.8]} 17... bxc6 {[%clk
0:04:24.3]} 18. f3 {[%clk 0:01:56]} 18... Rb8 {[%clk 0:04:22.3]} 19. Kf2 {[%clk
0:01:17.5]} 19... Kd7 {[%clk 0:04:18.1]} 20. c4 {[%clk 0:01:06.6]} 20... c5
{[%clk 0:03:58.4]} 21. Rd1 {[%clk 0:01:02.6]} 21... Kc6 {[%clk 0:03:55.7]} 22.
Re1 {[%clk 0:00:57.6]} 22... Re8 {[%clk 0:03:54.2]} 23. Bb2 {[%clk 0:00:47.4]}
23... Rxe1 {[%clk 0:03:51.8]} 24. Kxe1 {[%clk 0:00:46.2]} 24... Ne8 {[%clk
0:03:50.9]} 25. Ke2 {[%clk 0:00:37.8]} 25... g6 {[%clk 0:03:49]} 26. Ke3 {[%clk
0:00:36.2]} 26... Kd7 {[%clk 0:03:48.2]} 27. Kf4 {[%clk 0:00:29.2]} 27... Ke6
{[%clk 0:03:45.8]} 28. Kg5 {[%clk 0:00:25.5]} 28... h5 {[%clk 0:03:38]} 29. h3
{[%clk 0:00:19.4]} 29... c6 {[%clk 0:03:36.9]} 30. g4 {[%clk 0:00:17.7]} 30...
hxg4 {[%clk 0:03:34.6]} 31. hxg4 {[%clk 0:00:17.6]} 31... Nc7 {[%clk 0:03:28.2]}
32. Kf4 {[%clk 0:00:09.1]} 32... d5 {[%clk 0:03:26.3]} 33. cxd5+ {[%clk
0:00:05.8]} 33... Nxd5+ {[%clk 0:03:25.3]} 34. Ke4 {[%clk 0:00:04.6]} 34... Nb4
{[%clk 0:03:24.2]} 0-1